[Event "January 2 Late 2024"]
[Site "https://www.chess.com"]
[Date "2024.01.02"]
[Round "2"]
[White "Baches Garcia, Guillermo"]
[Black "Timmermans, Mark"]
[Result "0-1"]
[Board "76"]
[TimeControl "180+1"]
[WhiteFideId "2209764"]
[BlackFideId "1026399"]
[WhiteElo "2523"]
[BlackElo "2769"]
[WhiteTeam "ESP"]
[BlackTeam "NED"]
[WhiteClock "0:00:00"]
[BlackClock "0:00:25"]

1. d4 {[%clk 0:03:00]}  Nf6 {[%clk 0:02:59]} 2. Nf3 {[%clk 0:03:01]}  e6 {[%clk 0:02:59]} 3. Bg5 {[%clk 0:03:02]}  d5 {[%clk 0:02:59]} 4. Nbd2 {[%clk 0:03:02]}  Be7 {[%clk 0:03:00]} 5. e3 {[%clk 0:03:02]}  b6 {[%clk 0:02:59]} 6. Bd3 {[%clk 0:03:02]}  Bb7 {[%clk 0:02:59]} 7. c3 {[%clk 0:03:00]}  Ne4 {[%clk 0:02:59]} 8. Bxe7 {[%clk 0:02:58]}  Qxe7 {[%clk 0:03:00]} 9. Qc2 {[%clk 0:02:51]}  f5 {[%clk 0:02:50]} 10. Ne5 {[%clk 0:02:49]}  O-O {[%clk 0:02:51]} 11. O-O {[%clk 0:02:36]}  Nd7 {[%clk 0:02:49]} 12. Ndf3 {[%clk 0:02:31]}  Nef6 {[%clk 0:02:38]} 13. Bb5 {[%clk 0:02:26]}  Nxe5 {[%clk 0:02:37]} 14. Nxe5 {[%clk 0:02:27]}  a6 {[%clk 0:02:36]} 15. Bc6 {[%clk 0:02:21]}  Bxc6 {[%clk 0:02:35]} 16. Nxc6 {[%clk 0:02:21]}  Qd6 {[%clk 0:02:36]} 17. Ne5 {[%clk 0:02:21]}  Nd7 {[%clk 0:02:36]} 18. Nxd7 {[%clk 0:02:12]}  Qxd7 {[%clk 0:02:37]} 19. c4 {[%clk 0:02:12]}  c6 {[%clk 0:02:32]} 20. Rac1 {[%clk 0:02:11]}  Rfc8 {[%clk 0:02:29]} 21. f4 {[%clk 0:02:09]}  b5 {[%clk 0:02:29]} 22. b3 {[%clk 0:02:07]}  bxc4 {[%clk 0:02:28]} 23. bxc4 {[%clk 0:02:06]}  c5 {[%clk 0:02:28]} 24. dxc5 {[%clk 0:01:53]}  Rxc5 {[%clk 0:02:27]} 25. Qd2 {[%clk 0:01:53]}  Rac8 {[%clk 0:02:25]} 26. cxd5 {[%clk 0:01:52]}  Rxd5 {[%clk 0:02:24]} 27. Rxc8+ {[%clk 0:01:49]}  Qxc8 {[%clk 0:02:25]} 28. Qb2 {[%clk 0:01:47]}  Rc5 {[%clk 0:02:22]} 29. h3 {[%clk 0:01:42]}  h6 {[%clk 0:02:17]} 30. Rd1 {[%clk 0:01:41]}  Qc6 {[%clk 0:02:13]} 31. Rd2 {[%clk 0:01:19]}  Kh7 {[%clk 0:02:13]} 32. Kh2 {[%clk 0:01:19]}  Rb5 {[%clk 0:02:03]} 33. Qd4 {[%clk 0:01:18]}  Rd5 {[%clk 0:02:03]} 34. Qb2 {[%clk 0:01:18]}  Rb5 {[%clk 0:01:45]} 35. Qd4 {[%clk 0:01:18]}  Rb1 {[%clk 0:01:39]} 36. Rb2 {[%clk 0:01:09]}  Re1 {[%clk 0:01:34]} 37. Qd2 {[%clk 0:01:06]}  Rf1 {[%clk 0:01:16]} 38. Rc2 {[%clk 0:00:57]}  Qb6 {[%clk 0:01:08]} 39. Rb2 {[%clk 0:00:55]}  Qc7 {[%clk 0:00:59]} 40. Rc2 {[%clk 0:00:54]}  Qb7 {[%clk 0:00:53]} 41. Rb2 {[%clk 0:00:53]}  Qe4 {[%clk 0:00:53]} 42. Rb4 {[%clk 0:00:43]}  Qc6 {[%clk 0:00:51]} 43. Rd4 {[%clk 0:00:36]}  Qb6 {[%clk 0:00:46]} 44. Rd7 {[%clk 0:00:30]}  Qb1 {[%clk 0:00:44]} 45. Kg3 {[%clk 0:00:21]}  Qe1+ {[%clk 0:00:26]} 46. Qxe1 {[%clk 0:00:18]}  Rxe1 {[%clk 0:00:27]} 47. Kf3 {[%clk 0:00:17]}  Rf1+ {[%clk 0:00:26]} 48. Kg3 {[%clk 0:00:16]}  Re1 {[%clk 0:00:26]} 49. Kf3 {[%clk 0:00:16]}  Rf1+ {[%clk 0:00:21]} 50. Kg3 {[%clk 0:00:17]}  Ra1 {[%clk 0:00:22]} 51. Rd6 {[%clk 0:00:16]}  Rxa2 {[%clk 0:00:22]} 52. Rxe6 {[%clk 0:00:16]}  a5 {[%clk 0:00:23]} 53. Kf3 {[%clk 0:00:15]}  a4 {[%clk 0:00:23]} 54. Ra6 {[%clk 0:00:15]}  h5 {[%clk 0:00:23]} 55. g4 {[%clk 0:00:15]}  hxg4+ {[%clk 0:00:23]} 56. hxg4 {[%clk 0:00:15]}  g6 {[%clk 0:00:23]} 57. gxf5 {[%clk 0:00:11]}  gxf5 {[%clk 0:00:24]} 58. e4 {[%clk 0:00:10]}  Ra3+ {[%clk 0:00:24]} 59. Ke2 {[%clk 0:00:09]}  fxe4 {[%clk 0:00:25]} 60. Re6 {[%clk 0:00:09]}  Ra1 {[%clk 0:00:24]} 61. Rxe4 {[%clk 0:00:00]}  a3 {[%clk 0:00:25]} 0-1

[Event "January 2 Late 2024"]
[Site "https://www.chess.com"]
[Date "2024.01.02"]
[Round "2"]
[White "Ferreira, Vitor Hugo Vieira"]
[Black "Song, Ethan"]
[Result "0-1"]
[Board "78"]
[TimeControl "180+1"]
[WhiteFideId "2119765"]
[BlackFideId "62900412"]
[WhiteElo "2522"]
[BlackElo "2746"]
[WhiteTeam "BRA"]
[BlackTeam "CAN"]
[WhiteClock "0:00:08"]
[BlackClock "0:00:42"]

1. c4 {[%clk 0:03:00]}  e5 {[%clk 0:03:00]} 2. g3 {[%clk 0:03:00]}  Nf6 {[%clk 0:02:59]} 3. Bg2 {[%clk 0:02:59]}  c6 {[%clk 0:02:59]} 4. Nf3 {[%clk 0:02:57]}  e4 {[%clk 0:02:59]} 5. Nd4 {[%clk 0:02:57]}  d5 {[%clk 0:03:00]} 6. cxd5 {[%clk 0:02:57]}  cxd5 {[%clk 0:03:00]} 7. O-O {[%clk 0:02:53]}  Nc6 {[%clk 0:02:59]} 8. Nxc6 {[%clk 0:02:52]}  bxc6 {[%clk 0:02:59]} 9. d3 {[%clk 0:02:53]}  exd3 {[%clk 0:02:59]} 10. Qxd3 {[%clk 0:02:52]}  Bd6 {[%clk 0:02:58]} 11. Nc3 {[%clk 0:02:51]}  O-O {[%clk 0:02:58]} 12. e4 {[%clk 0:02:45]}  Qa5 {[%clk 0:02:54]} 13. Rd1 {[%clk 0:02:36]}  Ba6 {[%clk 0:02:50]} 14. Qc2 {[%clk 0:02:35]}  Rac8 {[%clk 0:02:44]} 15. Bg5 {[%clk 0:02:29]}  Be5 {[%clk 0:02:38]} 16. Bd2 {[%clk 0:02:20]}  d4 {[%clk 0:02:33]} 17. Nd5 {[%clk 0:02:17]}  Qd8 {[%clk 0:02:21]} 18. Nb4 {[%clk 0:02:13]}  Bb7 {[%clk 0:02:15]} 19. Nd3 {[%clk 0:02:09]}  Bb8 {[%clk 0:02:10]} 20. Nc5 {[%clk 0:02:05]}  Ba8 {[%clk 0:02:08]} 21. Rac1 {[%clk 0:02:01]}  Qb6 {[%clk 0:02:05]} 22. Bg5 {[%clk 0:01:55]}  Rcd8 {[%clk 0:02:02]} 23. Bxf6 {[%clk 0:01:53]}  gxf6 {[%clk 0:02:03]} 24. Qe2 {[%clk 0:01:41]}  Bd6 {[%clk 0:01:58]} 25. Nd7 {[%clk 0:01:30]}  Qc7 {[%clk 0:01:41]} 26. Nxf8 {[%clk 0:01:20]}  Bxf8 {[%clk 0:01:42]} 27. Bh3 {[%clk 0:01:10]}  c5 {[%clk 0:01:40]} 28. Bf5 {[%clk 0:01:10]}  h6 {[%clk 0:01:39]} 29. b4 {[%clk 0:01:04]}  Qb6 {[%clk 0:01:33]} 30. bxc5 {[%clk 0:01:04]}  Bxc5 {[%clk 0:01:34]} 31. Qg4+ {[%clk 0:00:58]}  Kh8 {[%clk 0:01:34]} 32. Qh5 {[%clk 0:00:57]}  Kg7 {[%clk 0:01:34]} 33. Rd3 {[%clk 0:00:44]}  Bb4 {[%clk 0:01:17]} 34. Rb1 {[%clk 0:00:36]}  Qd6 {[%clk 0:01:13]} 35. Qf3 {[%clk 0:00:34]}  a5 {[%clk 0:01:09]} 36. a3 {[%clk 0:00:34]}  Bc3 {[%clk 0:01:09]} 37. Rbd1 {[%clk 0:00:33]}  Qe7 {[%clk 0:00:56]} 38. Rxc3 {[%clk 0:00:19]}  dxc3 {[%clk 0:00:56]} 39. Rxd8 {[%clk 0:00:20]}  Qxd8 {[%clk 0:00:57]} 40. Qxc3 {[%clk 0:00:20]}  Qd1+ {[%clk 0:00:57]} 41. Kg2 {[%clk 0:00:20]}  Qe2 {[%clk 0:00:53]} 42. Qf3 {[%clk 0:00:17]}  Qb5 {[%clk 0:00:53]} 43. Qg4+ {[%clk 0:00:15]}  Kh8 {[%clk 0:00:46]} 44. Qh5 {[%clk 0:00:15]}  Bxe4+ {[%clk 0:00:46]} 45. f3 {[%clk 0:00:09]}  Qxf5 {[%clk 0:00:44]} 46. Qxf7 {[%clk 0:00:08]}  Qxf3+ {[%clk 0:00:41]} 47. Kh3 {[%clk 0:00:08]}  Bf5+ {[%clk 0:00:41]} 48. Kh4 {[%clk 0:00:08]}  Qg4# {[%clk 0:00:42]} 0-1

[Event "January 2 Late 2024"]
[Site "https://www.chess.com"]
[Date "2024.01.02"]
[Round "2"]
[White "Tristan, Leonardo"]
[Black "Kolb, Tobias"]
[Result "1-0"]
[Board "79"]
[TimeControl "180+1"]
[WhiteFideId "113816"]
[BlackFideId "12992321"]
[WhiteElo "2745"]
[BlackElo "2521"]
[WhiteTeam "ARG"]
[BlackTeam "GER"]
[WhiteClock "0:02:07"]
[BlackClock "0:01:07"]

1. d4 {[%clk 0:03:00]}  d5 {[%clk 0:02:55]} 2. Nf3 {[%clk 0:03:01]}  Nf6 {[%clk 0:02:55]} 3. Bf4 {[%clk 0:03:01]}  c5 {[%clk 0:02:50]} 4. e3 {[%clk 0:03:01]}  Nc6 {[%clk 0:02:49]} 5. c3 {[%clk 0:03:01]}  cxd4 {[%clk 0:02:48]} 6. exd4 {[%clk 0:03:01]}  Bg4 {[%clk 0:02:48]} 7. Nbd2 {[%clk 0:03:00]}  e6 {[%clk 0:02:48]} 8. Qb3 {[%clk 0:02:59]}  Bd6 {[%clk 0:02:48]} 9. Qxb7 {[%clk 0:02:57]}  Bxf4 {[%clk 0:02:48]} 10. Qxc6+ {[%clk 0:02:57]}  Kf8 {[%clk 0:02:48]} 11. Ne5 {[%clk 0:02:56]}  Bxd2+ {[%clk 0:02:22]} 12. Kxd2 {[%clk 0:02:56]}  Bh5 {[%clk 0:01:29]} 13. f3 {[%clk 0:02:48]}  Rc8 {[%clk 0:01:24]} 14. Qa6 {[%clk 0:02:32]}  Rb8 {[%clk 0:01:21]} 15. Qa3+ {[%clk 0:02:11]}  Kg8 {[%clk 0:01:14]} 16. Nc6 {[%clk 0:02:10]}  Qc7 {[%clk 0:01:07]} 17. Ne7+ {[%clk 0:02:07]} 1-0

[Event "January 2 Late 2024"]
[Site "https://www.chess.com"]
[Date "2024.01.02"]
[Round "2"]
[White "Lewicki, Miroslaw"]
[Black "Msellek, Ilyass"]
[Result "1-0"]
[Board "80"]
[TimeControl "180+1"]
[WhiteFideId "1113380"]
[BlackFideId "675938"]
[WhiteElo "2519"]
[BlackElo "2745"]
[WhiteTeam "POL"]
[BlackTeam "MAR"]
[WhiteClock "0:00:42"]
[BlackClock "0:00:03"]

1. g3 {[%clk 0:03:00]}  Nf6 {[%clk 0:02:57]} 2. Bg2 {[%clk 0:03:01]}  g6 {[%clk 0:02:58]} 3. Nf3 {[%clk 0:03:01]}  Bg7 {[%clk 0:02:58]} 4. O-O {[%clk 0:03:02]}  O-O {[%clk 0:02:59]} 5. c3 {[%clk 0:03:02]}  d6 {[%clk 0:03:00]} 6. d4 {[%clk 0:03:02]}  Nbd7 {[%clk 0:02:59]} 7. Re1 {[%clk 0:03:03]}  e5 {[%clk 0:02:58]} 8. e4 {[%clk 0:03:03]}  c6 {[%clk 0:02:58]} 9. Nbd2 {[%clk 0:03:02]}  b5 {[%clk 0:02:54]} 10. b3 {[%clk 0:03:02]}  Re8 {[%clk 0:02:51]} 11. Bb2 {[%clk 0:03:02]}  a5 {[%clk 0:02:50]} 12. c4 {[%clk 0:03:01]}  b4 {[%clk 0:02:45]} 13. c5 {[%clk 0:03:00]}  exd4 {[%clk 0:02:32]} 14. cxd6 {[%clk 0:02:59]}  c5 {[%clk 0:02:14]} 15. h3 {[%clk 0:02:50]}  Bb7 {[%clk 0:02:10]} 16. e5 {[%clk 0:02:48]}  Nd5 {[%clk 0:02:10]} 17. Nc4 {[%clk 0:02:46]}  Nc3 {[%clk 0:02:03]} 18. Qd3 {[%clk 0:02:19]}  a4 {[%clk 0:01:54]} 19. Bc1 {[%clk 0:02:05]}  axb3 {[%clk 0:01:53]} 20. Bg5 {[%clk 0:02:05]}  f6 {[%clk 0:01:40]} 21. exf6 {[%clk 0:01:55]}  Rxe1+ {[%clk 0:01:41]} 22. Rxe1 {[%clk 0:01:53]}  Bxf6 {[%clk 0:00:42]} 23. Bxf6 {[%clk 0:01:52]}  Qxf6 {[%clk 0:00:38]} 24. axb3 {[%clk 0:01:52]}  Rf8 {[%clk 0:00:33]} 25. Re7 {[%clk 0:01:48]}  Rf7 {[%clk 0:00:18]} 26. Rxd7 {[%clk 0:01:44]}  Rxd7 {[%clk 0:00:14]} 27. Nfe5 {[%clk 0:01:44]}  Bxg2 {[%clk 0:00:13]} 28. Nxd7 {[%clk 0:01:44]}  Qe6 {[%clk 0:00:07]} 29. Nxc5 {[%clk 0:01:41]}  Qd5 {[%clk 0:00:06]} 30. d7 {[%clk 0:01:02]}  Bh1 {[%clk 0:00:06]} 31. Ne3 {[%clk 0:01:02]}  Ne2+ {[%clk 0:00:04]} 32. Kh2 {[%clk 0:00:57]}  Qd6 {[%clk 0:00:02]} 33. Qxe2 {[%clk 0:00:50]}  dxe3 {[%clk 0:00:02]} 34. Qxe3 {[%clk 0:00:44]}  Bc6 {[%clk 0:00:02]} 35. Qe8+ {[%clk 0:00:42]}  Qf8 {[%clk 0:00:02]} 36. Qxf8+ {[%clk 0:00:41]}  Kxf8 {[%clk 0:00:03]} 37. d8=Q+ {[%clk 0:00:42]} 1-0

[Event "January 2 Late 2024"]
[Site "https://www.chess.com"]
[Date "2024.01.02"]
[Round "2"]
[White "Subelj, Jan"]
[Black "Estrada Nieto, Julian"]
[Result "1-0"]
[Board "81"]
[TimeControl "180+1"]
[WhiteFideId "14618583"]
[BlackFideId "5101018"]
[WhiteElo "2744"]
[BlackElo "2519"]
[WhiteTeam "SLO"]
[BlackTeam "ESP"]
[WhiteClock "0:01:46"]
[BlackClock "0:00:46"]

1. d4 {[%clk 0:03:00]}  d5 {[%clk 0:02:59]} 2. Bg5 {[%clk 0:03:01]}  h6 {[%clk 0:02:58]} 3. Bh4 {[%clk 0:03:00]}  c6 {[%clk 0:02:59]} 4. Nc3 {[%clk 0:02:55]}  Bf5 {[%clk 0:02:53]} 5. Qd2 {[%clk 0:02:53]}  Nf6 {[%clk 0:02:48]} 6. Bxf6 {[%clk 0:02:52]}  exf6 {[%clk 0:02:49]} 7. e3 {[%clk 0:02:51]}  Nd7 {[%clk 0:02:42]} 8. Bd3 {[%clk 0:02:50]}  Bxd3 {[%clk 0:02:43]} 9. Qxd3 {[%clk 0:02:42]}  Bd6 {[%clk 0:02:41]} 10. Nge2 {[%clk 0:02:42]}  O-O {[%clk 0:02:41]} 11. O-O {[%clk 0:02:37]}  Re8 {[%clk 0:02:41]} 12. b3 {[%clk 0:02:34]}  g6 {[%clk 0:02:36]} 13. Na4 {[%clk 0:02:33]}  f5 {[%clk 0:02:32]} 14. c4 {[%clk 0:02:33]}  Nf6 {[%clk 0:02:32]} 15. Nac3 {[%clk 0:02:33]}  Bc7 {[%clk 0:02:24]} 16. g3 {[%clk 0:02:29]}  Qd7 {[%clk 0:02:15]} 17. Rac1 {[%clk 0:02:29]}  Rad8 {[%clk 0:02:02]} 18. cxd5 {[%clk 0:02:28]}  Nxd5 {[%clk 0:02:00]} 19. Nxd5 {[%clk 0:02:22]}  Qxd5 {[%clk 0:02:00]} 20. Nc3 {[%clk 0:02:22]}  Qf3 {[%clk 0:02:00]} 21. Qe2 {[%clk 0:02:21]}  Qxe2 {[%clk 0:01:50]} 22. Nxe2 {[%clk 0:02:21]}  Bd6 {[%clk 0:01:32]} 23. Kg2 {[%clk 0:02:21]}  Kg7 {[%clk 0:01:32]} 24. Kf3 {[%clk 0:02:21]}  g5 {[%clk 0:01:32]} 25. h4 {[%clk 0:02:21]}  g4+ {[%clk 0:01:30]} 26. Kg2 {[%clk 0:02:21]}  Kf6 {[%clk 0:01:21]} 27. Rc2 {[%clk 0:02:20]}  Ke6 {[%clk 0:01:21]} 28. Rb1 {[%clk 0:02:17]}  a5 {[%clk 0:01:20]} 29. Nc3 {[%clk 0:02:17]}  Ra8 {[%clk 0:01:18]} 30. Na4 {[%clk 0:02:17]}  Ra6 {[%clk 0:01:14]} 31. Rbc1 {[%clk 0:02:11]}  Kd7 {[%clk 0:01:11]} 32. Nc5+ {[%clk 0:02:01]}  Bxc5 {[%clk 0:01:10]} 33. Rxc5 {[%clk 0:02:02]}  a4 {[%clk 0:01:11]} 34. Rxf5 {[%clk 0:02:01]}  axb3 {[%clk 0:01:08]} 35. axb3 {[%clk 0:01:59]}  Ke7 {[%clk 0:01:07]} 36. Rcc5 {[%clk 0:01:57]}  Rb6 {[%clk 0:01:04]} 37. Rc3 {[%clk 0:01:50]}  Ra8 {[%clk 0:01:03]} 38. Rf4 {[%clk 0:01:49]}  h5 {[%clk 0:01:02]} 39. Rc5 {[%clk 0:01:49]}  Rxb3 {[%clk 0:01:00]} 40. Re5+ {[%clk 0:01:49]}  Kf8 {[%clk 0:00:56]} 41. Rxh5 {[%clk 0:01:47]}  Re8 {[%clk 0:00:49]} 42. Rh8+ {[%clk 0:01:46]}  Ke7 {[%clk 0:00:46]} 43. Re4+ {[%clk 0:01:46]} 1-0

[Event "January 2 Late 2024"]
[Site "https://www.chess.com"]
[Date "2024.01.02"]
[Round "2"]
[White "Lie, Kjetil A."]
[Black "Bagrationi, Alexander"]
[Result "1-0"]
[Board "84"]
[TimeControl "180+1"]
[WhiteFideId "1501984"]
[BlackFideId "14104954"]
[WhiteElo "2741"]
[BlackElo "2463"]
[WhiteTeam "NOR"]
[BlackTeam "ISR"]
[WhiteClock "0:01:04"]
[BlackClock "0:00:00"]

1. c4 {[%clk 0:03:00]}  e6 {[%clk 0:02:44]} 2. Nc3 {[%clk 0:02:58]}  d5 {[%clk 0:02:43]} 3. e3 {[%clk 0:02:58]}  c6 {[%clk 0:02:41]} 4. Nf3 {[%clk 0:02:59]}  Nf6 {[%clk 0:02:41]} 5. b3 {[%clk 0:02:59]}  Nbd7 {[%clk 0:02:41]} 6. Bb2 {[%clk 0:02:59]}  Be7 {[%clk 0:02:39]} 7. Qc2 {[%clk 0:02:59]}  O-O {[%clk 0:02:39]} 8. Rg1 {[%clk 0:02:57]}  e5 {[%clk 0:02:13]} 9. cxd5 {[%clk 0:02:51]}  cxd5 {[%clk 0:02:13]} 10. g4 {[%clk 0:02:50]}  e4 {[%clk 0:02:11]} 11. g5 {[%clk 0:02:29]}  exf3 {[%clk 0:01:52]} 12. gxf6 {[%clk 0:02:29]}  Nxf6 {[%clk 0:01:53]} 13. Bd3 {[%clk 0:02:28]}  Be6 {[%clk 0:01:47]} 14. Nb5 {[%clk 0:02:01]}  Rc8 {[%clk 0:01:41]} 15. Qd1 {[%clk 0:02:01]}  Qd7 {[%clk 0:00:22]} 16. Qxf3 {[%clk 0:01:54]}  Kh8 {[%clk 0:00:22]} 17. Nd4 {[%clk 0:01:42]}  Bg4 {[%clk 0:00:20]} 18. Qg3 {[%clk 0:01:33]}  Bd6 {[%clk 0:00:19]} 19. Qh4 {[%clk 0:01:33]}  Bh5 {[%clk 0:00:15]} 20. Nf5 {[%clk 0:01:24]}  Bg6 {[%clk 0:00:02]} 21. Bxf6 {[%clk 0:01:19]}  d4 {[%clk 0:00:02]} 22. Bxg7+ {[%clk 0:01:10]}  Kg8 {[%clk 0:00:00]} 23. Qf6 {[%clk 0:01:04]} 1-0

[Event "January 2 Late 2024"]
[Site "https://www.chess.com"]
[Date "2024.01.02"]
[Round "2"]
[White "Gabdushev, Ruslan"]
[Black "Daggupati, Balaji"]
[Result "0-1"]
[Board "85"]
[TimeControl "180+1"]
[WhiteFideId "4137833"]
[BlackFideId "2090759"]
[WhiteElo "2425"]
[BlackElo "2740"]
[WhiteTeam "RUS"]
[BlackTeam "USA"]
[WhiteClock "0:00:11"]
[BlackClock "0:00:24"]

1. c4 {[%clk 0:03:00]}  e5 {[%clk 0:02:59]} 2. g3 {[%clk 0:02:58]}  Nf6 {[%clk 0:02:59]} 3. Bg2 {[%clk 0:02:58]}  Nc6 {[%clk 0:03:00]} 4. e4 {[%clk 0:02:57]}  Bc5 {[%clk 0:02:56]} 5. Nc3 {[%clk 0:02:56]}  d6 {[%clk 0:02:56]} 6. h3 {[%clk 0:02:56]}  a6 {[%clk 0:02:56]} 7. d3 {[%clk 0:02:55]}  Nd4 {[%clk 0:02:48]} 8. Nge2 {[%clk 0:02:50]}  Be6 {[%clk 0:02:43]} 9. Be3 {[%clk 0:02:48]}  Nc6 {[%clk 0:02:35]} 10. Qd2 {[%clk 0:02:45]}  Qd7 {[%clk 0:02:35]} 11. f4 {[%clk 0:02:43]}  g6 {[%clk 0:02:22]} 12. Nd5 {[%clk 0:02:37]}  Bxd5 {[%clk 0:02:16]} 13. exd5 {[%clk 0:02:31]}  Nd4 {[%clk 0:01:55]} 14. fxe5 {[%clk 0:02:22]}  dxe5 {[%clk 0:01:51]} 15. O-O {[%clk 0:02:01]}  Nh5 {[%clk 0:01:47]} 16. Bxd4 {[%clk 0:01:53]}  exd4 {[%clk 0:01:44]} 17. g4 {[%clk 0:01:51]}  Ng7 {[%clk 0:01:42]} 18. b4 {[%clk 0:01:50]}  Bd6 {[%clk 0:01:31]} 19. Qh6 {[%clk 0:01:44]}  O-O {[%clk 0:01:29]} 20. Nxd4 {[%clk 0:01:34]}  Be5 {[%clk 0:01:26]} 21. Nf3 {[%clk 0:01:34]}  Bxa1 {[%clk 0:01:26]} 22. Ng5 {[%clk 0:01:29]}  Bd4+ {[%clk 0:01:25]} 23. Kh1 {[%clk 0:01:28]}  Rfe8 {[%clk 0:01:13]} 24. Qxh7+ {[%clk 0:01:27]}  Kf8 {[%clk 0:01:13]} 25. Qh8+ {[%clk 0:01:21]}  Ke7 {[%clk 0:01:14]} 26. Rxf7+ {[%clk 0:01:21]}  Kd6 {[%clk 0:01:12]} 27. Rxd7+ {[%clk 0:01:19]}  Kxd7 {[%clk 0:01:13]} 28. Qh7 {[%clk 0:01:12]}  Re1+ {[%clk 0:01:13]} 29. Bf1 {[%clk 0:01:10]}  Rxf1+ {[%clk 0:01:13]} 30. Kg2 {[%clk 0:01:10]}  Rf2+ {[%clk 0:01:14]} 31. Kg3 {[%clk 0:01:10]}  Raf8 {[%clk 0:01:11]} 32. Ne6 {[%clk 0:01:03]}  Be5+ {[%clk 0:00:39]} 33. Kh4 {[%clk 0:01:02]}  Rh8 {[%clk 0:00:38]} 34. Qxh8 {[%clk 0:00:55]}  Nf5+ {[%clk 0:00:38]} 35. gxf5 {[%clk 0:00:54]}  Bxh8 {[%clk 0:00:39]} 36. fxg6 {[%clk 0:00:54]}  Rg2 {[%clk 0:00:38]} 37. Kh5 {[%clk 0:00:53]}  Rg3 {[%clk 0:00:38]} 38. h4 {[%clk 0:00:51]}  Bf6 {[%clk 0:00:32]} 39. Kh6 {[%clk 0:00:33]}  Bxh4 {[%clk 0:00:31]} 40. g7 {[%clk 0:00:33]}  Bf6 {[%clk 0:00:32]} 41. Kh7 {[%clk 0:00:30]}  Bxg7 {[%clk 0:00:31]} 42. Nxg7 {[%clk 0:00:30]}  Rxd3 {[%clk 0:00:30]} 43. Ne6 {[%clk 0:00:28]}  Ra3 {[%clk 0:00:25]} 44. Kg6 {[%clk 0:00:27]}  Rxa2 {[%clk 0:00:24]} 45. Kf5 {[%clk 0:00:27]}  Rb2 {[%clk 0:00:24]} 46. Ke4 {[%clk 0:00:25]}  Rxb4 {[%clk 0:00:24]} 47. Kd3 {[%clk 0:00:25]}  b5 {[%clk 0:00:23]} 48. Nc5+ {[%clk 0:00:23]}  Kd6 {[%clk 0:00:24]} 49. Nb7+ {[%clk 0:00:21]}  Ke5 {[%clk 0:00:23]} 50. cxb5 {[%clk 0:00:15]}  Rxb5 {[%clk 0:00:24]} 51. Nd8 {[%clk 0:00:11]}  Rxd5+ {[%clk 0:00:24]} 0-1

[Event "January 2 Late 2024"]
[Site "https://www.chess.com"]
[Date "2024.01.02"]
[Round "2"]
[White "Karpov, Vadim"]
[Black "Korchmar, Vasiliy"]
[Result "0-1"]
[Board "86"]
[TimeControl "180+1"]
[WhiteFideId "4155025"]
[BlackFideId "24131750"]
[WhiteElo "2420"]
[BlackElo "2738"]
[WhiteTeam "RUS"]
[BlackTeam "RUS"]
[WhiteClock "0:01:05"]
[BlackClock "0:00:46"]

1. Nf3 {[%clk 0:03:00]}  d5 {[%clk 0:02:58]} 2. d4 {[%clk 0:02:59]}  Nf6 {[%clk 0:02:58]} 3. c4 {[%clk 0:02:59]}  e6 {[%clk 0:02:59]} 4. Nc3 {[%clk 0:02:59]}  dxc4 {[%clk 0:02:59]} 5. Qa4+ {[%clk 0:02:56]}  Nbd7 {[%clk 0:02:52]} 6. Qxc4 {[%clk 0:02:55]}  a6 {[%clk 0:02:52]} 7. g3 {[%clk 0:02:52]}  c5 {[%clk 0:02:46]} 8. Bg2 {[%clk 0:02:44]}  b5 {[%clk 0:02:45]} 9. Qd3 {[%clk 0:02:44]}  Bb7 {[%clk 0:02:44]} 10. O-O {[%clk 0:02:33]}  Be7 {[%clk 0:02:41]} 11. Bg5 {[%clk 0:02:30]}  O-O {[%clk 0:02:34]} 12. Rfd1 {[%clk 0:02:18]}  c4 {[%clk 0:02:34]} 13. Qc2 {[%clk 0:02:12]}  b4 {[%clk 0:02:27]} 14. Na4 {[%clk 0:02:10]}  Rc8 {[%clk 0:02:27]} 15. Ne1 {[%clk 0:02:09]}  Bxg2 {[%clk 0:02:25]} 16. Nxg2 {[%clk 0:02:10]}  Qa5 {[%clk 0:02:16]} 17. Bxf6 {[%clk 0:02:09]}  Bxf6 {[%clk 0:02:12]} 18. e4 {[%clk 0:02:08]}  Rfd8 {[%clk 0:02:04]} 19. Ne3 {[%clk 0:02:07]}  Qb5 {[%clk 0:01:58]} 20. Rac1 {[%clk 0:02:03]}  h5 {[%clk 0:01:52]} 21. h4 {[%clk 0:01:46]}  Nf8 {[%clk 0:01:34]} 22. e5 {[%clk 0:01:39]}  Be7 {[%clk 0:01:31]} 23. b3 {[%clk 0:01:38]}  cxb3 {[%clk 0:01:19]} 24. Qxb3 {[%clk 0:01:34]}  Rxc1 {[%clk 0:01:19]} 25. Rxc1 {[%clk 0:01:34]}  Rxd4 {[%clk 0:01:20]} 26. Nc4 {[%clk 0:01:26]}  Ng6 {[%clk 0:01:06]} 27. Re1 {[%clk 0:01:26]}  Qxc4 {[%clk 0:01:04]} 28. Qf3 {[%clk 0:01:16]}  Qxa2 {[%clk 0:00:54]} 29. Nb6 {[%clk 0:01:16]}  b3 {[%clk 0:00:46]} 30. Rc1 {[%clk 0:01:15]}  b2 {[%clk 0:00:45]} 31. Rc8+ {[%clk 0:01:14]}  Rd8 {[%clk 0:00:45]} 32. Rxd8+ {[%clk 0:01:05]}  Bxd8 {[%clk 0:00:46]} 0-1

[Event "January 2 Late 2024"]
[Site "https://www.chess.com"]
[Date "2024.01.02"]
[Round "2"]
[White "Koellner, Ruben Gideon"]
[Black "Sukandar, Irine Kharisma"]
[Result "0-1"]
[Board "88"]
[TimeControl "180+1"]
[WhiteFideId "12993093"]
[BlackFideId "7101937"]
[WhiteElo "2733"]
[BlackElo "2401"]
[WhiteTeam "GER"]
[BlackTeam "INA"]
[WhiteClock "0:00:00"]
[BlackClock "0:01:03"]

1. d4 {[%clk 0:03:00]}  Nf6 {[%clk 0:02:59]} 2. Nf3 {[%clk 0:03:00]}  b6 {[%clk 0:02:59]} 3. Nbd2 {[%clk 0:03:00]}  Bb7 {[%clk 0:03:00]} 4. e3 {[%clk 0:03:00]}  g6 {[%clk 0:03:00]} 5. Bd3 {[%clk 0:03:01]}  Bg7 {[%clk 0:03:01]} 6. O-O {[%clk 0:03:01]}  O-O {[%clk 0:03:02]} 7. e4 {[%clk 0:02:59]}  d6 {[%clk 0:03:02]} 8. c3 {[%clk 0:02:59]}  e5 {[%clk 0:03:01]} 9. Re1 {[%clk 0:02:53]}  Nbd7 {[%clk 0:03:00]} 10. a4 {[%clk 0:02:52]}  a6 {[%clk 0:02:52]} 11. a5 {[%clk 0:02:47]}  b5 {[%clk 0:02:52]} 12. b4 {[%clk 0:02:45]}  Re8 {[%clk 0:02:49]} 13. Bb2 {[%clk 0:02:41]}  c5 {[%clk 0:02:43]} 14. d5 {[%clk 0:02:39]}  c4 {[%clk 0:02:42]} 15. Bc2 {[%clk 0:02:24]}  Nh5 {[%clk 0:02:40]} 16. Nf1 {[%clk 0:02:20]}  Nf8 {[%clk 0:02:34]} 17. Bc1 {[%clk 0:02:17]}  h6 {[%clk 0:02:33]} 18. Be3 {[%clk 0:02:15]}  Bc8 {[%clk 0:02:32]} 19. Qd2 {[%clk 0:02:09]}  g5 {[%clk 0:02:30]} 20. Ng3 {[%clk 0:02:01]}  Nf4 {[%clk 0:02:27]} 21. Nf5 {[%clk 0:01:55]}  Bxf5 {[%clk 0:02:24]} 22. exf5 {[%clk 0:01:55]}  Nd7 {[%clk 0:02:18]} 23. g3 {[%clk 0:01:51]}  Nd3 {[%clk 0:02:05]} 24. Re2 {[%clk 0:00:43]}  Qf6 {[%clk 0:02:04]} 25. g4 {[%clk 0:00:17]}  Nf4 {[%clk 0:01:56]} 26. Ree1 {[%clk 0:00:12]}  e4 {[%clk 0:01:56]} 27. Bd4 {[%clk 0:00:10]}  exf3 {[%clk 0:01:22]} 28. Bxf6 {[%clk 0:00:09]}  Bxf6 {[%clk 0:01:22]} 29. Re3 {[%clk 0:00:05]}  Ne2+ {[%clk 0:01:08]} 30. Kf1 {[%clk 0:00:04]}  Nxc3 {[%clk 0:01:04]} 31. Rxc3 {[%clk 0:00:00]}  Re2 {[%clk 0:01:03]} 0-1